bitfinex/quotes_SOLUSD_20220114
["timestamp","ask_amount","ask_price","bid_price","bid_amount"]
[1642163518525,0.07962902,144.15,144.09,0.26]
[1642163518820,0.07962902,144.15,144.09,6.26]
[1642163519020,0.07962902,144.15,144.09,6.0]
[1642163519424,0.07962902,144.15,144.08,25.01050814]
[1642163519720,0.07962902,144.15,144.09,2.775]
[1642163520322,0.07962902,144.15,144.09,78.575]
[1642163520521,0.07962902,144.15,144.09,9.035]
[1642163520722,0.07962902,144.15,144.09,8.775]
[1642163520923,2.775,144.14,144.03,2.775]
[1642163521322,3.285,144.14,144.01,2.775]
[1642163521926,25.1605884,144.13,144.02,23.40497121]
[1642163522326,25.6705884,144.13,144.02,23.40497121]
[1642163523026,29.62185292,144.13,144.02,23.40497121]
[1642163523225,2.775,144.12,144.02,23.40497121]
[1642163523627,3.285,144.12,144.02,23.40497121]
[1642163523828,4.47577588,144.12,144.02,23.40497121]
[1642163524026,2.775,144.12,144.02,29.91497121]
[1642163524226,2.775,144.12,144.02,25.37251414]
[1642163524429,3.95126452,144.13,144.02,41.43251414]
[1642163524628,3.95126452,144.13,144.02,48.05451414]
[1642163524827,3.95126452,144.11,144.02,48.05451414]
[1642163525026,3.95126452,144.11,144.02,46.59697121]
[1642163525252,3.95126452,144.11,144.03,69.8]
[1642163525453,3.95126452,144.11,144.03,86.37]
[1642163525854,3.95126452,144.11,144.03,16.57]
[1642163526055,3.95126452,144.13,144.03,16.57]
[1642163526959,4.21126452,144.13,144.03,16.57]
[1642163527356,4.46126452,144.13,144.03,16.57]
[1642163527556,4.21126452,144.13,144.03,16.57]
[1642163528257,3.95126452,144.13,144.03,16.57]
[1642163528758,4.20126452,144.13,144.03,10.57]
[1642163528956,4.20126452,144.13,144.03,10.06]
[1642163529159,4.20126452,144.13,144.02,23.40497121]
[1642163529360,2.775,144.12,144.02,23.40497121]
[1642163529560,4.20126452,144.12,144.02,23.40497121]
[1642163529759,5.18231159,144.11,144.02,23.40497121]
[1642163529957,0.25,144.11,144.02,93.20497121]
[1642163530159,0.25,144.11,144.02,29.40497121]
[1642163530362,0.25,144.11,144.02,39.46497121]
[1642163530561,0.25,144.11,144.02,41.17670594]
[1642163531159,3.95126452,144.11,144.02,39.71497121]
[1642163531362,3.95126452,144.11,144.02,39.97497121]
[1642163531562,3.95126452,144.11,144.03,71.26173473]
[1642163531761,3.95126452,144.11,144.03,70.05]
[1642163531961,3.95126452,144.11,144.03,86.37]
[1642163532360,3.95126452,144.14,144.03,86.37]
[1642163532963,3.95126452,144.14,144.03,93.31973473]
[1642163533362,4.03089354,144.15,144.03,93.31973473]
[1642163535165,4.29089354,144.15,144.03,93.31973473]
[1642163535766,3.95126452,144.14,144.03,93.31973473]
[1642163535965,4.21126452,144.14,144.03,93.31973473]
[1642163536366,4.21126452,144.14,144.03,91.858]
[1642163536567,4.21126452,144.14,144.03,86.37]
[1642163537769,4.21126452,144.14,144.03,16.06]
[1642163537968,4.46126452,144.14,144.03,10.06]
[1642163538169,4.46126452,144.14,144.02,23.40497121]
[1642163538367,2.775,144.13,144.02,23.40497121]
[1642163538569,3.285,144.13,144.02,93.20497121]
[1642163538769,3.95126452,144.12,144.02,23.40497121]
[1642163538967,4.46126452,144.12,144.02,23.40497121]
[1642163539171,13.74209212,144.12,144.02,23.40497121]
[1642163539371,13.74209212,144.12,144.02,93.20497121]
[1642163540074,13.74209212,144.12,144.02,93.46497121]
[1642163540271,13.74209212,144.12,144.02,93.20497121]
[1642163540469,3.95126452,144.11,144.02,93.20497121]
[1642163540672,6.72626452,144.11,144.02,23.40497121]
[1642163540871,7.23626452,144.11,144.02,23.40497121]
[1642163541272,13.77726452,144.11,144.01,2.775]
[1642163541473,25.5380404,144.11,144.01,2.775]
[1642163541671,3.95126452,144.1,143.94,460.1389896]
[1642163541873,2.777,144.09,143.94,460.1389896]
[1642163542173,4.73777588,144.09,143.95,27.94575175]
[1642163542374,28.11641368,144.09,143.95,27.94575175]
[1642163542572,28.11641368,144.09,143.95,28.19575175]
[1642163542775,28.11641368,144.09,143.95,34.19575175]
[1642163542973,3.95126452,144.07,143.95,34.19575175]
[1642163543172,12.0578276,144.06,143.95,34.19575175]
[1642163543373,12.0578276,144.06,143.95,103.99575175]
[1642163543573,12.3078276,144.06,143.95,34.19575175]
[1642163544373,16.25909212,144.06,143.95,34.19575175]
[1642163544573,13.48209212,144.06,143.95,34.19575175]
[1642163544775,13.74209212,144.06,143.95,34.19575175]
[1642163544976,13.74209212,144.06,143.95,34.45575175]
[1642163545173,13.74209212,144.06,143.95,34.19575175]
[1642163545775,69.8,144.05,143.95,33.94575175]
[1642163545976,69.8,144.05,143.92,2.777]
[1642163545977,2.777,144.04,143.92,2.777]
[1642163546176,11.068,144.04,143.91,2.778]
[1642163546377,11.068,144.04,143.9,10.06]
[1642163546378,11.578,144.04,143.9,10.06]
[1642163546575,17.2300404,144.04,143.9,10.06]
[1642163546778,27.2900404,144.04,143.9,10.06]
[1642163546974,23.1286378,144.03,143.91,30.61005924]
[1642163547176,2.778,144.02,143.91,30.61005924]
[1642163547577,3.288,144.02,143.91,30.61005924]
[1642163547775,17.29926452,144.02,143.91,30.61005924]
[1642163548878,3.95126452,144.01,143.91,30.61005924]
[1642163549075,4.20126452,144.01,143.91,30.61005924]
[1642163549876,9.2808276,144.0,143.91,30.61005924]
[1642163550078,9.5308276,144.0,143.91,30.61005924]
[1642163550277,0.25,144.0,143.91,30.61005924]
[1642163550478,3.95126452,144.01,143.91,31.12005924]
[1642163550678,3.95126452,144.01,143.92,2.778]
[1642163550877,3.95126452,144.02,143.92,2.778]
[1642163551077,3.95126452,144.02,143.92,79.088]
[1642163551078,4.20126452,144.02,143.92,79.088]
[1642163551877,0.25,144.02,143.92,79.088]
[1642163552277,4.20126452,144.04,143.92,79.088]
[1642163552477,3.95126452,144.04,143.92,79.088]
[1642163552879,3.95126452,144.05,143.93,1.46173473]
[1642163553077,3.95126452,144.05,143.93,7.97173473]
[1642163553580,3.95126452,144.06,143.94,13.83047534]
[1642163553776,3.95126452,144.06,143.95,69.8]
[1642163553978,4.46126452,144.06,143.95,76.31]
[1642163554177,4.21126452,144.06,143.95,76.31]
[1642163554477,3.95126452,144.06,143.95,76.31]
[1642163554676,29.30256452,144.07,143.95,81.827]
[1642163554878,29.30256452,144.07,143.96,10.06]
[1642163555080,3.95126452,144.07,143.97,72.577]
[1642163555479,3.95126452,144.07,143.97,79.087]
[1642163556081,3.95126452,144.07,143.98,28.96572668]
[1642163556282,3.95126452,144.07,143.99,2.777]
[1642163556480,4.20126452,144.07,143.99,2.777]
[1642163556881,0.25,144.07,143.99,8.777]
[1642163557084,0.25,144.07,143.99,2.777]
[1642163557884,3.95126452,144.08,143.98,31.74272668]
[1642163558082,4.46126452,144.08,143.98,37.74272668]
[1642163558283,4.21126452,144.08,143.98,37.74272668]
[1642163559585,4.46126452,144.08,143.98,37.74272668]
[1642163559984,4.20126452,144.08,143.98,37.99272668]
[1642163560186,4.20126452,144.08,143.98,38.25272668]
[1642163560589,3.95126452,144.08,143.98,38.25272668]
[1642163561289,3.95126452,144.08,143.99,69.8]
[1642163561487,27.41276452,144.09,144.01,15.4748079]
[1642163561690,3.95126452,144.09,144.01,15.4748079]
[1642163561888,3.95126452,144.09,144.01,21.7248079]
[1642163562487,3.95126452,144.09,144.01,21.9848079]
[1642163562687,3.95126452,144.1,144.01,21.9848079]
[1642163562890,3.95126452,144.1,144.02,2.775]
[1642163563089,3.95126452,144.1,144.02,9.285]
[1642163563691,5.96161384,144.12,144.02,9.285]
[1642163563692,3.95126452,144.12,144.03,69.8]
[1642163563888,3.95126452,144.12,144.04,24.41589451]
[1642163564092,3.95126452,144.12,144.04,30.66589451]
[1642163564491,3.95126452,144.12,144.04,24.66589451]
[1642163564693,3.95126452,144.13,144.04,24.66589451]
[1642163565291,4.21126452,144.13,144.04,24.66589451]
[1642163565690,4.21126452,144.13,144.04,24.41589451]
[1642163565892,6.98626452,144.13,144.04,24.41589451]
[1642163566095,2.775,144.12,144.04,24.41589451]
[1642163566293,6.98626452,144.13,144.04,24.41589451]
[1642163566715,3.95126452,144.11,144.04,24.41589451]
[1642163567115,4.21126452,144.11,144.04,24.41589451]
[1642163567415,4.21126452,144.11,144.04,30.41589451]
[1642163568118,4.21126452,144.11,144.04,24.41589451]
[1642163569017,0.26,144.11,144.04,24.41589451]
[1642163569418,4.21126452,144.12,144.04,24.41589451]
[1642163570723,4.21126452,144.12,144.04,30.41589451]
[1642163570919,4.21126452,144.12,144.04,24.41589451]
[1642163571520,13.3656943,144.12,144.04,24.41589451]
[1642163571920,2.775,144.11,144.04,24.41589451]
[1642163572120,2.775,144.11,144.0,2.775]
[1642163572322,0.51,144.11,144.0,9.025]
[1642163572521,3.95126452,144.1,144.0,8.775]
[1642163573021,3.95126452,144.1,144.0,2.775]
[1642163573022,4.46126452,144.1,144.0,2.775]
[1642163573225,4.46126452,144.1,144.01,24.28961992]
[1642163573423,7.23626452,144.1,144.01,24.28961992]
[1642163573625,6.98626452,144.1,144.01,24.28961992]
[1642163574324,3.95126452,144.09,144.01,24.28961992]
[1642163574524,4.21126452,144.09,144.01,24.28961992]
[1642163575123,0.26,144.09,144.01,24.28961992]
[1642163575523,3.95126452,144.1,144.01,24.28961992]
[1642163575524,4.21126452,144.1,144.01,24.28961992]
[1642163576024,4.46126452,144.1,144.01,24.28961992]
[1642163577024,22.71070574,144.09,144.01,24.28961992]
[1642163577426,23.22070574,144.09,144.01,24.28961992]
[1642163577628,0.25,144.09,144.01,24.28961992]
[1642163577826,3.95126452,144.1,144.01,30.28961992]
[1642163578426,3.95126452,144.1,144.01,30.53961992]
[1642163578827,3.95126452,144.1,144.01,30.79961992]
[1642163579028,3.95126452,144.1,144.01,33.57461992]
[1642163579230,3.95126452,144.1,144.01,103.37461992]
[1642163579628,7.92384781,144.11,144.01,33.31461992]
[1642163579829,7.92384781,144.11,144.01,29.53961992]
[1642163580030,7.92384781,144.11,144.02,2.775]
[1642163580430,8.17384781,144.11,144.02,3.025]
[1642163580631,12.62118695,144.11,144.02,9.025]
[1642163580834,12.87118695,144.11,144.02,2.775]
[1642163581232,2.775,144.1,144.01,23.28961992]
[1642163581434,3.025,144.1,144.01,23.28961992]
[1642163581634,3.285,144.1,144.01,23.28961992]
[1642163582533,7.23626452,144.1,144.01,23.28961992]
[1642163583136,7.23626452,144.1,143.99,24.1201]
[1642163583137,8.9370404,144.1,143.99,24.1201]
[1642163583834,7.9243471,144.09,143.99,24.1201]
[1642163584037,8.4343471,144.09,143.96,2.775]
[1642163584234,26.54506842,144.08,143.97,27.12160884]
[1642163584434,26.80506842,144.08,143.97,27.12160884]
[1642163584634,27.05506842,144.08,143.97,27.12160884]
[1642163586136,7.9243471,144.07,143.97,27.12160884]
[1642163586336,9.64139699,144.05,143.97,27.12160884]
[1642163586538,9.90139699,144.05,143.97,27.12160884]
[1642163586738,10.15139699,144.05,143.97,27.12160884]
[1642163587942,9.89139699,144.05,143.97,27.12160884]
[1642163588738,9.89139699,144.05,143.94,2.777]
[1642163588938,9.89139699,144.05,143.94,3.027]
[1642163589138,10.15139699,144.05,143.94,9.027]
[1642163589740,10.15139699,144.05,143.95,25.62010393]
[1642163589939,10.15139699,144.05,143.95,25.87010393]
[1642163590540,10.15139699,144.05,143.95,31.87010393]
[1642163590741,10.15139699,144.05,143.95,25.62010393]
[1642163591242,0.25,144.05,143.95,25.62010393]
[1642163591438,6.97826452,144.07,143.95,31.88010393]
[1642163591639,6.97826452,144.07,143.96,2.777]
[1642163592039,6.97826452,144.07,143.96,9.037]
[1642163592238,33.99054547,144.07,143.96,9.287]
[1642163592770,34.25054547,144.07,143.96,9.027]
[1642163592940,31.47354547,144.07,143.96,9.027]
[1642163593340,31.47354547,144.07,143.96,3.027]
[1642163593744,31.21354547,144.07,143.96,9.027]
[1642163594341,4.20126452,144.07,143.96,9.027]
[1642163594745,0.25,144.07,143.96,9.027]
[1642163594946,52.33506452,144.08,143.96,9.287]
[1642163595145,62.14506452,144.08,143.96,9.287]
[1642163596146,6.54042121,144.07,143.96,9.027]
[1642163596350,6.54042121,144.07,143.96,8.777]
[1642163596566,7.05042121,144.07,143.96,9.037]
[1642163596748,7.05042121,144.07,143.96,8.777]
[1642163596949,7.05042121,144.07,143.96,9.037]
[1642163597151,0.25,144.07,143.96,9.037]
[1642163597350,3.95126452,144.09,143.97,79.86]
[1642163597551,3.95126452,144.08,143.98,2.777]
[1642163597749,3.95126452,144.08,143.98,12.837]
[1642163597953,3.95126452,144.08,143.98,20.79432164]
[1642163598149,3.95126452,144.08,143.99,17.82043064]
[1642163598349,3.95126452,144.08,144.0,2.777]
[1642163598550,3.95126452,144.08,144.0,18.18432164]
[1642163598750,3.95126452,144.11,144.0,28.24432164]
[1642163599548,3.95126452,144.11,144.02,25.62010393]
[1642163600050,30.39529829,144.13,144.02,32.13010393]
[1642163600276,7.92290325,144.13,144.02,32.13010393]
[1642163600476,7.92290325,144.13,144.02,42.19010393]
[1642163600877,8.18290325,144.13,144.02,42.19010393]
[1642163601379,0.26,144.13,144.03,72.575]
[1642163601581,38.14853741,144.14,144.03,87.713]
[1642163601876,38.14853741,144.14,144.03,87.463]
[1642163602077,8.18290325,144.14,144.03,87.463]
[1642163602278,7.92290325,144.14,144.03,87.463]
[1642163602577,4.03089354,144.15,144.04,10.06]
[1642163602778,4.03089354,144.15,144.05,2.775]
[1642163602979,4.03089354,144.15,144.05,9.285]
[1642163603177,4.03089354,144.15,144.07,69.8]
[1642163603376,4.03089354,144.15,144.09,25.62010393]
[1642163603579,0.07962902,144.15,144.09,31.87010393]
[1642163603783,0.07962902,144.15,144.09,32.13010393]
[1642163604181,0.07962902,144.15,144.09,6.0]
[1642163604380,2.85462902,144.15,144.06,23.8545]
[1642163604580,4.8054049,144.15,144.06,23.8545]
[1642163604780,3.10462902,144.15,144.06,29.8545]
[1642163604980,2.85462902,144.15,144.06,29.8545]
[1642163605180,2.85462902,144.15,144.07,24.18051704]
[1642163605379,0.07962902,144.15,144.07,24.18051704]
[1642163605579,0.07962902,144.15,144.07,30.18051704]
[1642163605980,0.07962902,144.15,144.07,30.43051704]
[1642163606582,0.07962902,144.15,144.07,30.18051704]
[1642163606782,0.07962902,144.15,144.07,24.18051704]
[1642163606980,4.03089354,144.15,144.06,23.8545]
[1642163607179,6.80589354,144.15,144.06,23.8545]
[1642163607480,7.05589354,144.15,144.06,23.8545]
[1642163607682,7.05589354,144.15,144.04,10.06]
[1642163607880,8.20670643,144.14,144.05,23.86787002]
[1642163608084,8.46670643,144.14,144.05,30.11787002]
[1642163608282,8.71670643,144.14,144.05,30.11787002]
[1642163608482,8.71670643,144.14,144.05,29.86787002]
[1642163608683,8.71670643,144.14,144.05,30.11787002]
[1642163609083,4.76544191,144.14,144.05,30.11787002]
[1642163609584,4.50544191,144.14,144.05,29.86787002]
[1642163609787,4.50544191,144.14,144.05,30.11787002]
[1642163609990,8.45670643,144.14,144.05,30.11787002]
[1642163610688,8.20670643,144.14,144.05,30.11787002]
[1642163611090,8.46670643,144.14,144.05,30.11787002]
[1642163611589,4.51544191,144.14,144.05,30.11787002]
[1642163611793,4.51544191,144.14,144.05,6.25]
[1642163611990,4.76544191,144.14,144.04,16.06]
[1642163612191,2.775,144.13,144.04,6.0]
[1642163612595,1.96501078,144.11,144.02,32.1504335]
[1642163612793,1.96501078,144.11,144.03,23.88460544]
[1642163612993,2.47501078,144.11,144.03,29.88460544]
[1642163613395,1.96501078,144.1,144.03,29.88460544]
[1642163613794,1.96501078,144.1,144.03,30.13460544]
[1642163614297,27.16919794,144.11,144.03,30.13460544]
[1642163614795,27.42919794,144.11,144.03,30.13460544]
[1642163615497,27.16919794,144.11,144.03,30.13460544]
[1642163616297,1.96501078,144.1,144.03,30.13460544]
[1642163618497,6.96203429,144.11,144.03,30.13460544]
[1642163618900,2.21501078,144.11,144.03,30.13460544]
[1642163619098,2.21501078,144.11,144.03,30.39460544]
[1642163619598,0.25,144.11,144.03,30.39460544]
[1642163619998,24.47028849,144.13,144.03,30.13460544]
[1642163620401,0.25,144.13,144.04,69.8]
[1642163620800,0.25,144.13,144.04,100.7888]
[1642163621201,0.07962902,144.15,144.04,100.7888]
[1642163621402,0.07962902,144.15,144.06,89.35592913]
[1642163621602,0.07962902,144.15,144.06,94.73792913]
[1642163621800,0.07962902,144.15,144.06,101.24792913]
[1642163622403,0.07962902,144.15,144.06,111.30792913]
[1642163622602,0.07962902,144.15,144.06,111.04792913]
[1642163623602,0.07962902,144.15,144.07,2.775]
[1642163623801,0.07962902,144.15,144.08,10.06]
[1642163624002,0.07962902,144.15,144.09,72.575]
[1642163624204,0.07962902,144.15,144.09,80.494]
[1642163624404,0.07962902,144.15,144.09,17.204]
[1642163624604,0.07962902,144.15,144.1,23.88460544]
[1642163625003,0.07962902,144.15,144.1,30.39460544]
[1642163625704,0.07962902,144.15,144.1,29.88460544]
[1642163625902,0.07962902,144.15,144.09,2.775]
[1642163626104,0.07962902,144.15,144.09,6.25]
[1642163626303,0.07962902,144.15,144.08,8.775]
[1642163626541,0.07962902,144.15,144.08,6.0]
[1642163626939,0.07962902,144.15,144.07,30.6661335]
[1642163627142,0.07962902,144.15,144.07,33.6911335]
[1642163627542,1.96501078,144.14,144.07,31.7053]
[1642163627739,28.06420615,144.14,144.07,28.9303]
[1642163628342,28.32420615,144.14,144.07,28.9303]
[1642163629342,28.06420615,144.14,144.07,28.9303]
[1642163629546,2.775,144.13,144.05,1.9858335]
[1642163630043,1.70077588,144.12,144.05,1.9858335]
[1642163630242,2.775,144.11,144.05,1.9858335]
[1642163630442,2.775,144.11,144.03,1.9858335]
[1642163630443,7.31027004,144.1,144.03,1.9858335]
[1642163630842,7.57027004,144.1,144.03,1.9858335]
[1642163631043,7.82027004,144.1,144.03,1.9858335]
[1642163631643,1.96501078,144.09,144.01,2.775]
[1642163632046,4.17578666,144.09,144.01,2.775]
[1642163632448,84.33577588,144.08,144.0,1.9858335]
[1642163632647,26.09919537,144.07,143.97,2.776]
[1642163632844,26.09919537,144.07,143.96,3.02590523]
[1642163632845,12.837,144.06,143.96,3.02590523]
[1642163633048,13.347,144.06,143.96,3.02590523]
[1642163633243,69.8,144.05,143.96,3.02590523]
[1642163633445,12.837,144.04,143.96,3.02590523]
[1642163633944,13.347,144.04,143.9,3.02590523]
[1642163634145,7.31027004,144.02,143.9,31.04376145]
[1642163634344,2.778,144.01,143.9,31.04376145]
[1642163634543,0.26,144.01,143.91,2.778]
[1642163634745,0.51,144.01,143.91,2.778]
[1642163635149,0.25,144.01,143.91,2.778]
[1642163635746,20.65827004,144.02,143.91,2.778]
[1642163635946,20.65827004,144.02,143.91,3.028]
[1642163637052,17.88027004,144.02,143.91,3.028]
[1642163637449,10.06,144.02,143.91,9.288]
[1642163637649,2.778,144.03,143.91,3.288]
[1642163637849,14.01126452,144.05,143.91,79.088]
[1642163638352,14.01126452,144.05,143.92,3.97382059]
[1642163638550,30.05337131,144.04,143.93,18.20067835]
[1642163638949,30.05337131,144.04,143.93,24.45067835]
[1642163639652,30.05337131,144.04,143.93,24.71067835]
[1642163640055,30.56337131,144.04,143.93,24.45067835]
[1642163641453,30.56337131,144.04,143.93,18.45067835]
[1642163641655,32.26414719,144.04,143.93,18.45067835]
[1642163643454,32.26414719,144.04,143.93,15.67267835]
[1642163643857,42.32414719,144.04,143.93,15.42267835]
[1642163644256,112.12414719,144.04,143.93,15.42267835]
[1642163644457,2.778,144.03,143.91,50.22450523]
[1642163644655,10.06,144.02,143.91,50.22450523]
[1642163644857,2.778,144.01,143.91,50.22450523]
[1642163645057,3.288,144.01,143.91,3.02590523]
[1642163645284,3.288,144.01,143.9,3.02590523]
[1642163645456,3.3560941,144.0,143.91,24.81538663]
[1642163645859,3.8660941,144.0,143.91,24.81538663]
[1642163648157,81.56077588,143.99,143.89,3.02590523]
[1642163648358,2.778,143.98,143.89,3.02590523]
[1642163648557,4.73877588,143.98,143.89,3.02590523]
[1642163648758,4.98877588,143.98,143.89,3.02590523]
[1642163648957,3.288,143.98,143.89,3.02590523]
[1642163649161,26.78962868,143.97,143.88,27.89467048]
[1642163649357,26.78962868,143.97,143.88,3.97525097]
[1642163649557,1.70077588,143.96,143.88,3.97525097]
[1642163649759,2.779,143.95,143.88,3.97525097]
[1642163649959,0.26,143.95,143.87,3.02590523]
[1642163650159,0.51,143.95,143.87,9.02590523]
[1642163650560,0.25,143.95,143.87,9.02590523]
[1642163650759,0.25,143.95,143.87,3.02590523]
[1642163650958,0.25,143.95,143.86,31.23718992]
[1642163651160,0.26,143.96,143.87,2.779]
[1642163651359,10.06,143.97,143.87,2.779]
[1642163651561,10.06,143.97,143.87,9.039]
[1642163651761,10.06,143.97,143.87,9.289]
[1642163651960,10.06,143.97,143.87,13.26433077]
[1642163652863,10.06,143.97,143.88,7.001236]
[1642163653061,24.0797,144.0,143.89,2.779]
[1642163653261,24.1042,144.01,143.89,2.779]
[1642163653462,11.76077588,144.03,143.89,10.73632164]
[1642163653664,10.06,144.03,143.9,10.06]
[1642163653863,39.49066495,144.03,143.91,14.98134465]
[1642163654072,39.49066495,144.03,143.91,21.49134465]
[1642163654564,10.31,144.03,143.92,69.8]
[1642163654765,12.838,144.06,143.93,2.778]
[1642163654965,3.95126452,144.07,143.93,26.823]
[1642163655169,3.95126452,144.07,143.93,28.27032164]
[1642163655565,3.95126452,144.07,143.94,23.07981084]
[1642163655966,0.25,144.07,143.95,69.8]
[1642163656464,37.93027109,144.08,143.95,76.31]
[1642163656665,37.67027109,144.08,143.96,2.777]
[1642163656866,37.67027109,144.08,143.97,20.36072373]
[1642163657067,2.777,144.07,143.97,26.61072373]
[1642163657366,40.44727109,144.08,143.97,26.61072373]
[1642163658670,37.67027109,144.08,143.97,26.61072373]
[1642163658871,37.93027109,144.08,143.97,26.61072373]
[1642163660498,37.67027109,144.08,143.97,26.61072373]
[1642163660895,40.44727109,144.08,143.97,26.87072373]
[1642163661696,12.837,144.08,143.98,69.8]
[1642163661903,3.95126452,144.09,143.98,72.577]
[1642163662095,3.95126452,144.09,143.98,79.087]
[1642163662596,3.95126452,144.11,143.98,79.087]
[1642163662796,33.3614827,144.11,143.98,79.087]
[1642163663797,29.41021818,144.11,143.98,89.147]
[1642163664497,29.66021818,144.11,143.98,89.147]
[1642163666199,29.66021818,144.11,143.98,90.59432164]
[1642163667601,29.66021818,144.11,144.01,69.8]
[1642163668001,29.66021818,144.11,144.01,76.31]
[1642163668600,29.66021818,144.11,144.02,2.775]
[1642163669001,29.66021818,144.11,144.02,9.025]
[1642163669401,29.92021818,144.11,144.02,9.025]
[1642163670003,29.92021818,144.11,144.02,6.25]
[1642163670204,29.92021818,144.11,144.02,6.0]
[1642163670402,2.775,144.1,143.99,126.4441]
[1642163670603,2.775,144.1,143.99,133.9791]
[1642163670805,3.285,144.1,143.99,133.9791]
[1642163671005,3.285,144.1,144.0,27.46976274]
[1642163671404,3.285,144.1,144.0,33.71976274]
[1642163671907,3.035,144.1,144.0,27.71976274]
[1642163672106,2.775,144.1,144.0,27.71976274]
[1642163673107,3.95126452,144.12,144.0,33.71976274]
[1642163673310,3.95126452,144.12,144.0,27.71976274]
[1642163673908,25.7550723,144.11,144.0,27.71976274]
[1642163674108,25.7550723,144.11,144.0,33.71976274]
[1642163674307,25.7550723,144.11,144.0,27.71976274]
[1642163674509,25.7550723,144.11,144.0,33.71976274]
[1642163675510,25.7550723,144.11,144.0,27.71976274]
[1642163675709,25.7550723,144.11,144.0,0.25]
[1642163675912,2.775,144.1,143.99,47.8691]
[1642163676309,3.035,144.1,143.99,47.8691]
[1642163676711,3.035,144.1,143.99,75.88541546]
[1642163677210,6.72626452,144.11,143.99,75.88541546]
[1642163677412,3.95126452,144.11,144.0,74.02232164]
[1642163677710,3.95126452,144.11,144.01,10.06]
[1642163677911,3.95126452,144.11,144.01,11.50732164]
[1642163678109,3.95126452,144.11,144.02,1.44732164]
[1642163678310,3.95126452,144.14,144.03,10.06]
[1642163678512,3.3397476,144.13,144.03,10.06]
[1642163678711,3.3397476,144.13,144.04,2.775]
[1642163678909,3.3397476,144.13,144.05,28.01631546]
[1642163679310,3.3397476,144.13,144.04,2.775]
[1642163679510,3.3397476,144.13,144.02,2.775]
[1642163680312,3.3397476,144.13,144.03,99.91531882]
[1642163680510,3.3397476,144.13,144.04,2.775]
[1642163682616,3.3397476,144.13,144.04,72.575]
[1642163683215,3.3397476,144.13,144.04,2.775]
[1642163684717,0.07962902,144.15,144.04,2.775]
[1642163685117,4.03089354,144.15,144.04,72.575]
[1642163685716,31.99423199,144.14,144.04,72.575]
[1642163687523,0.07962902,144.15,144.04,72.575]
[1642163687721,0.07962902,144.15,144.04,96.7036]
[1642163688321,27.9139112,144.15,144.04,96.7036]
[1642163688723,30.6889112,144.15,144.04,96.7036]
[1642163689924,27.9139112,144.15,144.04,26.9036]
[1642163692929,30.6889112,144.15,144.04,26.9036]
[1642163694155,30.6889112,144.15,144.04,24.1286]
[1642163695558,40.7489112,144.15,144.02,2.775]
[1642163695759,40.7489112,144.15,144.01,2.775]
[1642163695760,69.8,144.14,144.01,2.775]
[1642163695957,2.775,144.13,144.0,27.5692]
[1642163696157,2.775,144.13,144.0,24.7942]
[1642163696361,15.63518323,144.12,144.0,24.7942]
[1642163696558,2.775,144.11,144.0,24.7942]
[1642163696758,10.06,144.11,144.0,24.7942]
[1642163697460,10.06,144.11,144.0,25.0442]
[1642163697859,10.06,144.11,144.01,2.775]
[1642163698362,10.06,144.11,144.02,14.65882739]
[1642163700763,10.06,144.11,144.03,2.775]
[1642163700962,10.06,144.11,144.01,2.775]
[1642163705068,17.647,144.11,144.01,2.775]
[1642163705870,2.775,144.1,144.01,2.775]
[1642163706068,69.8,144.08,143.95,2.775]
[1642163706267,2.777,144.07,143.94,3.92108733]
[1642163706469,10.06,144.06,143.93,27.16208733]
[1642163706670,2.777,144.05,143.93,27.16208733]
[1642163706872,10.433,144.05,143.93,27.16208733]
[1642163707070,24.96571055,144.04,143.93,27.16208733]
[1642163707269,24.96571055,144.04,143.93,23.241]
[1642163707872,24.96571055,144.04,143.92,30.96089967]
[1642163708074,2.778,144.03,143.92,30.96089967]
[1642163709274,37.80371055,144.04,143.92,30.96089967]
[1642163711575,107.60371055,144.04,143.92,30.96089967]
[1642163711774,37.80371055,144.04,143.92,30.96089967]
[1642163715178,12.838,144.04,143.92,30.96089967]
[1642163715380,30.34250873,144.07,143.93,82.638]
[1642163715580,26.71640872,144.07,143.95,69.8]